bitfinex-derivatives/quotes_SOLF0:USTF0_20230701
["timestamp","ask_amount","ask_price","bid_price","bid_amount"]
[1688170160951,26.38888954,18.968,18.961,73.78]
[1688170161450,129.2798,18.972,18.961,73.78]
[1688170161647,1.93914941,18.971,18.961,73.78]
[1688170162047,0.85132555,18.968,18.964,0.7179879]
[1688170168951,27.5969155,18.968,18.964,0.7179879]
[1688170169353,0.85132555,18.968,18.964,0.7179879]
[1688170173660,73.94,18.982,18.967,74.36]
[1688170173851,1.93839588,18.981,18.97,74.36]
[1688170174553,1.93839588,18.981,18.974,0.83358915]
[1688170174554,0.48872364,18.977,18.974,0.83358915]
[1688170174863,26.71144201,18.982,18.976,74.36]
[1688170175059,74.33,18.99,18.978,74.17]
[1688170175264,1.93773433,18.989,18.978,74.17]
[1688170175556,74.36,18.988,18.976,74.36]
[1688170175750,1.93773433,18.987,18.976,74.36]
[1688170175947,1.93773433,18.987,18.98,0.77554891]
[1688170177059,1.93773433,18.986,18.98,0.77554891]
[1688170177359,81.47,18.992,18.981,0.83267038]
[1688170177555,1.93748779,18.991,18.981,0.83267038]
[1688170178353,1.93748779,18.991,18.981,82.30267038]
[1688170178666,1.93748779,18.99,18.981,82.30267038]
[1688170178854,1.93748779,18.989,18.984,0.85086215]
[1688170179055,1.93748779,18.988,18.984,0.85086215]
[1688170179255,80.84,18.994,18.984,0.85086215]
[1688170179456,26.32056876,18.997,18.987,81.47]
[1688170179659,26.32056876,18.997,18.99,0.72162441]
[1688170179861,81.26,19.001,18.99,0.72162441]
[1688170180060,1.93654626,19.0,18.99,0.72162441]
[1688170181863,81.47,18.999,18.99,0.72162441]
[1688170182064,1.93654626,18.998,18.99,0.72162441]
[1688170183569,81.06,18.993,18.979,81.47]
[1688170183867,1.93654626,18.992,18.979,81.47]
[1688170184554,0.72023652,18.987,18.984,0.74964718]
[1688170188071,0.72023652,18.987,18.977,133.9025]
[1688170188265,0.72023652,18.987,18.981,200.0]
[1688170188568,26.43526474,18.994,18.985,81.47]
[1688170188759,26.31405041,19.0,18.988,81.47]
[1688170188963,1.93673148,18.999,18.988,81.47]
[1688170189156,81.47,19.001,18.988,81.47]
[1688170189365,26.99967595,19.003,18.994,81.47]
[1688170189564,54.1452,19.007,18.994,81.47]
[1688170189764,1.93597127,19.006,18.994,81.47]
[1688170190363,1.93597127,19.006,18.998,0.84262885]
[1688170190666,81.8,19.008,18.998,0.84262885]
[1688170190870,1.93600606,19.007,18.998,0.84262885]
[1688170194174,83.40600606,19.007,18.998,0.84262885]
[1688170194377,1.93600606,19.006,18.998,0.84262885]
[1688170195574,80.84,19.005,18.998,0.84262885]
[1688170195769,0.79828036,19.003,18.991,81.47]
[1688170195969,1.93600606,19.002,18.991,81.47]
[1688170196169,1.93600606,19.001,18.991,81.47]
[1688170196480,1.9363953,19.0,18.991,81.47]
[1688170196673,0.84249027,18.997,18.994,0.79488974]
[1688170196973,0.81479115,18.997,18.994,0.79488974]
[1688170204574,0.81479115,18.997,18.987,81.47]
[1688170204774,81.26,19.0,18.987,81.47]
[1688170204974,1.93663378,18.999,18.987,81.47]
[1688170205285,1.93663378,18.999,18.98,81.47]
[1688170205286,81.26,18.994,18.98,81.47]
[1688170205485,0.72113993,18.989,18.985,0.72710238]
[1688170212886,0.72113993,18.989,18.98,81.47]
[1688170213078,0.72113993,18.989,18.977,136.2275]
[1688170213282,81.47,18.99,18.977,136.2275]
[1688170213478,26.33103,18.989,18.977,136.2275]
[1688170213878,0.71610318,18.985,18.981,0.81026998]
[1688170215692,0.71610318,18.985,18.973,81.47]
[1688170215887,200.0,18.988,18.97,81.47]
[1688170215888,81.47,18.983,18.97,81.47]
[1688170216387,107.80935,18.983,18.97,81.47]
[1688170216790,0.71812735,18.978,18.97,81.47]
[1688170217693,0.71812735,18.978,18.972,0.83980884]
[1688170220592,0.71812735,18.978,18.966,81.47]
[1688170220898,81.47,18.98,18.966,81.47]
[1688170221497,0.86208076,18.975,18.966,81.47]
[1688170221804,82.33208076,18.975,18.962,52.6839]
[1688170221990,81.47,18.975,18.962,52.6839]
[1688170222594,0.71521187,18.97,18.962,52.6839]
[1688170228603,0.71521187,18.97,18.962,134.1539]
[1688170229698,26.86182083,18.97,18.962,134.1539]
[1688170230095,0.71521187,18.97,18.962,134.1539]
[1688170237507,26.70734878,18.97,18.962,134.1539]
[1688170237708,0.71521187,18.97,18.962,134.1539]
[1688170240910,0.71521187,18.97,18.963,74.17]
[1688170241809,0.71521187,18.97,18.962,52.6839]
[1688170246619,26.78933568,18.97,18.962,52.6839]
[1688170246820,0.71521187,18.97,18.962,52.6839]
[1688170248119,0.71521187,18.97,18.967,74.17]
[1688170248418,26.90367885,18.976,18.969,73.68]
[1688170248617,129.7788,18.982,18.971,73.53]
[1688170248815,1.93841489,18.981,18.971,73.53]
[1688170249418,0.79209925,18.978,18.974,0.76262383]
[1688170254627,0.79209925,18.978,18.976,73.82]
[1688170255128,26.26643242,18.982,18.976,73.82]
[1688170255430,73.84,18.993,18.981,73.82]
[1688170255640,1.93713749,18.992,18.981,73.82]
[1688170255837,26.05454893,18.99,18.981,73.82]
[1688170256339,0.78949254,18.987,18.984,0.79579488]
[1688170257926,0.78949254,18.987,18.978,74.07]
[1688170258233,74.17,18.99,18.978,74.07]
[1688170258427,1.93743496,18.989,18.978,74.07]
[1688170259031,0.82955823,18.985,18.982,0.7578872]
[1688170260329,0.82955823,18.985,18.978,74.07]
[1688170260835,0.82955823,18.985,18.978,80.79]
[1688170263543,0.82955823,18.985,18.975,81.46]
[1688170263742,0.83223128,18.982,18.975,81.46]
[1688170263945,0.83223128,18.982,18.972,81.3]
[1688170264246,0.74608774,18.979,18.972,81.3]
[1688170267643,52.48777395,18.99,18.978,81.46]
[1688170267845,1.93758056,18.989,18.981,81.3]
[1688170268041,26.15813395,18.99,18.981,81.3]
[1688170268238,1.93723466,18.989,18.981,81.3]
[1688170268648,0.81388807,18.987,18.983,0.74587964]
[1688170277957,82.16388807,18.987,18.977,52.6114]
[1688170278154,81.46,18.984,18.971,80.79]
[1688170278950,0.72207462,18.979,18.971,80.79]
[1688170279955,0.72207462,18.979,18.973,80.79]
[1688170280150,81.01,18.986,18.973,80.79]
[1688170280151,0.74772736,18.978,18.973,80.79]
[1688170280352,0.74772736,18.978,18.97,80.79]
[1688170280547,0.72110594,18.976,18.97,80.79]
[1688170291857,0.72110594,18.976,18.967,81.46]
[1688170292058,0.77021241,18.973,18.967,81.46]
[1688170294962,0.77021241,18.973,18.971,81.46]
[1688170295360,25.78863877,18.983,18.974,0.75780064]
[1688170295661,81.01,18.988,18.976,81.46]
[1688170296255,0.72501017,18.984,18.976,81.46]
[1688170296461,0.72501017,18.984,18.98,0.77062865]
[1688170312473,0.72501017,18.984,18.971,54.7736]
[1688170312474,81.01,18.983,18.971,54.7736]
[1688170313569,0.85730552,18.979,18.971,54.7736]
[1688170315578,0.85730552,18.979,18.97,81.46]
[1688170317880,82.31730552,18.979,18.966,81.46]
[1688170318176,0.80725881,18.974,18.967,61.81314209]
[1688170318782,0.80725881,18.974,18.966,81.46]
[1688170320784,55.5176,18.984,18.969,326.42]
[1688170320976,1.93780319,18.983,18.972,74.09]
[1688170321486,26.73777889,18.985,18.978,73.71]
[1688170321684,0.72245315,18.983,18.98,0.77802037]
[1688170321883,0.72245315,18.983,18.98,74.23802037]
[1688170325290,74.09,18.992,18.98,74.23802037]
[1688170325492,1.93705643,18.991,18.982,74.09]
[1688170325691,1.93705643,18.99,18.982,74.09]
[1688170325994,73.38,18.995,18.982,74.09]
[1688170326188,1.93703602,18.994,18.982,74.09]
[1688170326493,0.83118641,18.99,18.987,73.51]
[1688170326697,586.0,19.002,18.986,0.86798168]
[1688170326698,26.69542593,19.0,18.989,73.71]
[1688170326902,1.93655042,18.999,18.992,73.53]
[1688170327088,1.93655042,18.999,18.994,73.46]
[1688170327289,83.97536886,19.008,18.997,73.53]
[1688170327491,1.93555437,19.007,18.997,73.53]
[1688170327896,0.7461063,19.004,19.0,0.7862408]
[1688170334201,57.1061,19.015,19.0,0.7862408]
[1688170334202,80.51,19.016,19.003,80.99]
[1688170334404,1.93501974,19.015,19.006,81.11]
[1688170334603,1.93501974,19.014,19.006,81.11]
[1688170334800,53.4492,19.017,19.006,81.11]
[1688170334998,1.93494875,19.016,19.006,81.11]
[1688170335194,0.79382216,19.013,19.009,0.78455756]
[1688170337599,0.79382216,19.013,19.003,81.11]
[1688170337815,1.93510353,19.012,19.003,81.11]
[1688170337997,1.93510353,19.011,19.003,81.11]
[1688170338198,80.7,19.017,19.003,81.11]
[1688170338501,1.93512344,19.016,19.003,81.11]
[1688170338703,0.76043402,19.011,19.0,81.2]
[1688170338903,81.28,19.006,18.992,81.81]
[1688170339202,81.28,19.004,18.992,81.81]
[1688170339708,0.75272804,19.0,18.996,0.80252725]
[1688170341403,0.75272804,19.0,18.987,81.11]
[1688170341607,81.28,18.998,18.984,81.28]
[1688170341802,81.28,18.994,18.981,81.2]
[1688170342399,0.77615469,18.989,18.986,0.70122255]
[1688170344200,81.28,18.988,18.974,81.2]
[1688170345107,0.74300363,18.983,18.974,81.2]
[1688170350610,0.74300363,18.983,18.977,80.99]
[1688170350806,0.8012456,18.982,18.977,80.99]
[1688170355111,0.8012456,18.982,18.97,81.2]
[1688170355311,200.0,18.988,18.969,55.1721]
[1688170355312,0.76271934,18.978,18.969,55.1721]
[1688170356513,0.76271934,18.978,18.952,325.12]
[1688170356514,324.33,18.975,18.952,325.12]
[1688170356719,0.78728464,18.965,18.958,80.67]
[1688170358811,0.78728464,18.965,18.955,80.67]
[1688170359016,0.72633951,18.962,18.956,61.84728221]
[1688170359315,81.23633951,18.962,18.949,81.28]
[1688170359613,0.78238518,18.957,18.949,81.28]
[1688170359916,0.78238518,18.957,18.945,135.0309]
[1688170360221,0.78737737,18.953,18.946,61.88890393]
[1688170361818,0.78737737,18.953,18.947,81.2]
[1688170362013,0.78737737,18.953,18.948,61.88890393]
[1688170363717,81.28,18.951,18.938,80.67]
[1688170363922,0.83824956,18.946,18.939,61.91733004]
[1688170365815,0.83824956,18.946,18.941,80.67]
[1688170366021,0.83824956,18.946,18.944,80.99]
[1688170366220,0.83824956,18.946,18.945,61.91601045]
[1688170366421,0.83824956,18.946,18.941,81.28]
[1688170366923,0.83824956,18.946,18.939,80.67]
[1688170368426,0.83824956,18.946,18.937,53.295]
[1688170368723,0.83824956,18.946,18.938,61.92692256]
[1688170368918,0.83824956,18.946,18.936,81.2]
[1688170369129,81.53824956,18.946,18.933,81.28]
[1688170369325,0.73120194,18.941,18.93,80.99]
[1688170369523,0.73102647,18.937,18.921,55.3283]
[1688170369726,0.78701817,18.931,18.927,81.2]
[1688170370027,0.71882753,18.931,18.928,61.98577233]
[1688170370326,0.71882753,18.931,18.927,81.2]
[1688170371832,0.71882753,18.931,18.925,81.18]
[1688170372020,0.71882753,18.931,18.926,61.98265055]
[1688170372221,0.71882753,18.931,18.928,81.11]
[1688170374629,54.6263,18.942,18.933,0.72619849]
[1688170374827,54.6263,18.942,18.93,80.67]
[1688170375527,26.80996892,18.943,18.934,0.72598931]
[1688170375528,0.78362007,18.938,18.934,0.72598931]
[1688170379431,80.7,18.949,18.936,80.67]
[1688170379626,81.28,18.951,18.938,81.11]
[1688170380433,0.78216143,18.946,18.943,0.80989841]
[1688170382031,0.78216143,18.946,18.935,80.67]
[1688170382231,80.51,18.948,18.935,80.67]
[1688170383025,0.79045209,18.943,18.94,0.69894426]
[1688170383632,81.28,18.956,18.941,80.67]
[1688170383829,53.0593,18.959,18.947,81.18]
[1688170384031,81.8,18.96,18.947,81.18]
[1688170384332,81.28,18.963,18.95,80.99]
[1688170384837,0.73729075,18.958,18.955,0.76094385]
[1688170385432,0.73729075,18.958,18.947,80.99]
[1688170385632,80.51,18.96,18.947,80.99]
[1688170386439,0.80588719,18.955,18.952,0.72678123]
[1688170388849,81.28,18.954,18.945,57.5819]
[1688170389649,133.4242,18.954,18.94,80.67]
[1688170389847,0.76510274,18.949,18.94,80.67]
[1688170391046,0.76510274,18.949,18.937,133.4481]
[1688170391252,0.83501025,18.945,18.937,133.4481]
[1688170392357,0.83501025,18.945,18.935,81.2]
[1688170392649,81.28,18.948,18.935,81.2]
[1688170392650,0.73840126,18.942,18.935,81.2]
[1688170393359,0.73840126,18.942,18.931,81.11]
[1688170393549,0.73840126,18.942,18.929,57.3239]
[1688170393550,0.81037671,18.938,18.929,57.3239]
[1688170394456,0.81037671,18.938,18.926,80.99]
[1688170394649,0.72966611,18.934,18.926,80.99]
[1688170397865,0.72966611,18.934,18.914,57.5217]
[1688170398155,200.0,18.938,18.917,81.2]
[1688170398156,0.7324673,18.926,18.917,81.2]
[1688170399659,0.7324673,18.926,18.914,138.8017]
[1688170399861,0.79086694,18.922,18.914,138.8017]
[1688170400257,0.79086694,18.922,18.918,80.67]
[1688170401161,0.79086694,18.922,18.915,81.18]
[1688170401748,0.79086694,18.922,18.914,57.5217]
[1688170401952,0.79086694,18.922,18.915,81.2]
[1688170403658,0.79086694,18.922,18.917,81.11]
[1688170404361,0.79086694,18.922,18.915,81.28]
[1688170405957,0.79086694,18.922,18.914,57.5217]
[1688170405958,0.79086694,18.922,18.917,81.18]
[1688170406365,0.79086694,18.922,18.915,80.99]
[1688170406960,0.79086694,18.922,18.916,9.70960334]
[1688170407265,0.79086694,18.922,18.915,80.99]
[1688170407460,0.79086694,18.922,18.916,9.70958557]
[1688170409863,82.07086694,18.922,18.909,81.2]
[1688170410059,0.81850749,18.917,18.909,81.2]
[1688170410364,0.81850749,18.917,18.906,55.5995]
[1688170410365,0.81850749,18.917,18.906,136.7995]
[1688170410564,0.81850749,18.917,18.907,9.71167821]
[1688170410968,0.81850749,18.917,18.909,80.99]
[1688170411171,0.81850749,18.917,18.912,81.11]
[1688170411366,0.81850749,18.917,18.913,9.71168919]
[1688170411973,0.81850749,18.917,18.914,80.67]
[1688170412161,81.28,18.927,18.919,0.72633795]
[1688170412366,54.9811,18.93,18.916,81.11]
[1688170413163,0.72048366,18.925,18.916,81.11]
[1688170413365,0.72048366,18.925,18.915,81.28]
[1688170413564,81.28,18.928,18.915,81.28]
[1688170414266,80.7,18.93,18.917,80.67]
[1688170414568,0.84199701,18.923,18.917,80.67]
[1688170416369,0.84199701,18.923,18.914,80.67]
[1688170416573,0.81845257,18.92,18.914,80.67]
[1688170418172,81.28,18.93,18.917,81.18]
[1688170419270,0.77418478,18.925,18.922,0.82116219]
[1688170419567,80.51,18.928,18.914,80.67]
[1688170419770,106.92589,18.928,18.914,80.67]
[1688170420273,106.92589,18.928,18.908,55.5995]
[1688170420274,551.53589,18.928,18.908,55.5995]
[1688170420469,82.13770658,18.92,18.908,55.5995]
[1688170420774,0.86334354,18.916,18.906,81.11]
[1688170421074,0.86334354,18.916,18.91,81.28]
[1688170421278,0.71547383,18.915,18.91,81.28]
[1688170422569,0.71547383,18.915,18.904,378.0558]
[1688170422570,0.71547383,18.915,18.906,81.11]
[1688170422763,0.71547383,18.915,18.904,52.9358]
[1688170423170,81.28,18.913,18.899,80.99]
[1688170423364,82.12937475,18.91,18.897,81.28]
[1688170423572,82.12937475,18.91,18.894,80.99]
[1688170423573,81.28,18.907,18.894,80.99]
[1688170423773,80.51,18.909,18.897,80.67]
[1688170424270,0.84937475,18.91,18.9,81.28]
[1688170424470,81.28,18.913,18.9,81.28]
[1688170424471,0.79740096,18.907,18.9,81.28]
[1688170424668,0.79740096,18.907,18.897,80.67]
[1688170424873,0.79740096,18.907,18.895,81.2]
[1688170425071,0.80274271,18.903,18.895,81.2]
[1688170425270,0.80274271,18.903,18.892,81.11]
[1688170425481,0.77563247,18.899,18.893,71.85122948]
[1688170425681,0.77563247,18.899,18.894,71.85122948]
[1688170425882,0.77563247,18.899,18.892,81.11]
[1688170425883,0.77563247,18.899,18.895,71.85122948]
[1688170426074,0.77563247,18.899,18.896,62.13281611]
[1688170426273,0.77563247,18.899,18.897,62.13281611]
[1688170426477,0.77563247,18.899,18.892,81.11]
[1688170426682,0.77563247,18.899,18.893,71.85115977]
[1688170426976,0.77563247,18.899,18.894,71.85115977]
[1688170427180,0.77563247,18.899,18.895,71.85115977]
[1688170427382,0.77563247,18.899,18.896,71.85115977]
[1688170427582,0.77563247,18.899,18.897,62.1327475]
[1688170427777,0.77563247,18.899,18.892,81.11]
[1688170427979,0.77563247,18.899,18.893,71.8505829]
[1688170428277,0.77563247,18.899,18.894,71.8505829]
[1688170428482,0.77563247,18.899,18.895,71.8505829]
[1688170428684,0.77563247,18.899,18.896,71.8505829]
[1688170428879,82.05563247,18.899,18.89,52.1982]
[1688170429084,82.05563247,18.899,18.886,81.18]
[1688170429282,0.77519749,18.894,18.887,71.88881639]
[1688170429479,0.77519749,18.894,18.878,81.11]
[1688170429480,80.7,18.891,18.878,81.11]
[1688170429676,0.75721711,18.886,18.879,9.72283186]
[1688170430080,0.75721711,18.886,18.881,81.18]
[1688170430283,0.75721711,18.886,18.882,9.72283186]
[1688170431183,0.75721711,18.886,18.883,9.72283186]
[1688170431382,0.82178789,18.886,18.879,9.72283186]
[1688170431683,0.85878091,18.884,18.88,9.72453547]
[1688170431892,0.85878091,18.884,18.881,9.72453547]
[1688170432082,0.85878091,18.884,18.882,9.72453547]
[1688170432381,0.85878091,18.884,18.869,200.0]
[1688170432382,81.28,18.883,18.869,81.28]
[1688170432580,0.72485882,18.878,18.87,9.72923042]
[1688170435281,0.72485882,18.878,18.875,81.28]
[1688170435489,107.58648406,18.888,18.876,9.72923042]
[1688170435686,80.7,18.885,18.876,9.72923042]
[1688170435985,33.18,18.887,18.877,9.72923042]
[1688170436286,33.47,18.883,18.87,53.4347]
[1688170436489,0.83912393,18.878,18.871,9.72844759]
[1688170436675,0.83912393,18.878,18.875,0.73387247]
[1688170438781,27.32497393,18.878,18.875,0.73387247]
[1688170439385,26.48725,18.877,18.875,0.73387247]
[1688170440993,26.48725,18.877,18.862,130.00841421]
[1688170441185,33.33,18.873,18.863,9.73160638]
[1688170441991,0.81544817,18.87,18.863,9.73160638]
[1688170442591,26.49848,18.869,18.863,9.73160638]
[1688170442789,33.33,18.867,18.863,9.73160638]
[1688170443085,59.83129,18.867,18.863,9.73160638]
[1688170443287,0.81544817,18.87,18.863,9.73160638]
[1688170443484,0.81544817,18.87,18.864,9.73434472]
[1688170443681,33.18,18.884,18.867,33.44]
[1688170443880,33.18,18.884,18.868,9.73434472]
[1688170444299,59.65744,18.884,18.868,9.73434472]
[1688170444800,0.81102557,18.878,18.874,0.81551834]
[1688170447194,59.32430568,18.888,18.874,0.81551834]
[1688170447397,54.3687,18.886,18.87,33.48]
[1688170447599,26.47323,18.887,18.871,9.73145683]
[1688170447800,54.3687,18.886,18.871,9.73145683]
[1688170448402,0.82216708,18.88,18.877,0.8363626]
[1688170448597,0.79499174,18.88,18.877,0.8363626]
[1688170449703,33.33,18.89,18.877,0.8363626]
[1688170449898,33.33,18.89,18.873,33.23]
[1688170450204,33.33,18.89,18.87,33.44]
[1688170450205,33.33,18.887,18.87,33.44]
[1688170450398,33.33,18.887,18.871,9.73228452]
[1688170450594,0.81473833,18.881,18.871,9.73228452]
[1688170450799,0.81473833,18.881,18.877,0.81850825]
[1688170452299,0.81473833,18.881,18.864,33.23]
[1688170452605,33.18,18.88,18.865,9.73313916]
[1688170452804,33.18,18.88,18.866,9.73313916]
[1688170453004,33.33,18.883,18.867,9.73313916]
[1688170453202,33.33,18.883,18.868,9.73313916]
[1688170453397,0.74836756,18.877,18.874,0.84499528]
[1688170455302,27.10699272,18.888,18.875,33.44]
[1688170455502,83.70179272,18.888,18.875,33.44]
[1688170455698,56.5948,18.888,18.875,33.44]
[1688170456407,0.84032584,18.883,18.88,0.75605406]
[1688170457004,0.84032584,18.883,18.863,53.9638]
[1688170457005,33.33,18.883,18.865,33.23]
[1688170457202,26.48024,18.882,18.866,9.73331019]
[1688170457805,26.48024,18.882,18.868,33.23]
[1688170458103,0.74437604,18.877,18.873,0.79251779]
[1688170458304,0.72037989,18.877,18.873,0.74409113]
[1688170465315,0.72037989,18.877,18.86,33.44]
[1688170465515,233.33,18.878,18.86,33.44]
[1688170466107,54.9233,18.877,18.86,33.44]
[1688170466311,0.83968724,18.87,18.867,0.75660451]
[1688170466512,0.81887937,18.87,18.867,0.75660451]
[1688170473018,200.0,18.867,18.851,33.48]
[1688170473209,33.47,18.866,18.848,33.44]
[1688170473413,57.8134,18.875,18.851,33.23]
[1688170473414,33.33,18.869,18.851,33.23]
[1688170473720,91.1434,18.875,18.857,33.44]
[1688170474217,0.86957454,18.868,18.864,0.0960493]
[1688170474815,33.33,18.885,18.867,33.48]
[1688170475418,259.74984352,18.887,18.87,33.44]
[1688170475621,233.47,18.887,18.87,33.44]
[1688170475815,0.79618854,18.88,18.877,0.85282021]
[1688170476021,0.72759269,18.88,18.877,0.85282021]
[1688170476916,0.72759269,18.88,18.87,33.44]
[1688170477221,0.72759269,18.88,18.871,52.6997]
[1688170478124,0.72759269,18.88,18.874,0.11146975]
[1688170480225,56.6708,18.896,18.871,52.6997]
[1688170480226,90.1508,18.896,18.878,33.44]
[1688170480421,26.46202,18.895,18.878,33.44]
[1688170481315,0.83231638,18.888,18.885,0.77351252]
[1688170481622,0.7177878,18.888,18.885,0.77351252]
[1688170491727,26.74342329,18.897,18.882,33.15]
[1688170491932,33.18,18.899,18.882,33.15]
[1688170492232,201.94617529,18.898,18.882,33.15]
[1688170492437,200.0,18.898,18.882,33.15]
[1688170492725,0.72223049,18.892,18.888,0.71817582]
[1688170497028,52.8831,18.901,18.88,53.9836]
[1688170497029,52.8831,18.901,18.889,33.48]
[1688170497427,33.48,18.909,18.892,33.15]
[1688170497625,54.5537,18.913,18.895,33.44]
[1688170497828,1.94505655,18.912,18.895,33.44]
[1688170498025,0.80532366,18.905,18.902,0.815738]
[1688170498239,0.77298768,18.905,18.902,0.815738]
[1688170498938,33.48,18.922,18.904,33.48]
[1688170499134,1.9443573,18.921,18.907,33.48]
[1688170499333,1.9443573,18.92,18.907,33.48]
[1688170499539,1.9443573,18.92,18.908,53.3944]
[1688170499728,1.9443573,18.919,18.91,33.48]
[1688170499933,83.71291652,18.924,18.91,33.48]
[1688170500225,1.94390496,18.923,18.913,34.31587214]
[1688170500435,1.94390496,18.923,18.905,133.92]
[1688170500436,26.31152439,18.932,18.916,33.44]
[1688170500630,57.6408,18.93,18.916,33.44]
[1688170500825,1.9434866,18.929,18.919,33.44]
[1688170501025,1.9434866,18.928,18.919,33.44]
[1688170501230,1.9434866,18.927,18.919,33.44]
[1688170501428,0.83136715,18.925,18.922,0.74772315]
[1688170501626,0.7384681,18.925,18.922,0.74772315]
[1688170502433,0.7384681,18.925,18.917,33.23]
[1688170502837,1.9438097,18.924,18.909,33.15]
[1688170503033,1.9438097,18.924,18.91,55.6155]
[1688170503237,1.9438097,18.923,18.91,55.6155]
[1688170503434,0.86838571,18.918,18.915,0.74110589]
[1688170503638,0.83585599,18.918,18.915,0.73508749]
[1688170508936,200.83585599,18.918,18.905,33.44]
[1688170509140,1.94447799,18.917,18.902,33.44]
[1688170509333,1.94447799,18.917,18.9,55.6155]
[1688170509334,90.99057799,18.917,18.9,55.6155]
[1688170509643,33.18,18.914,18.9,55.6155]
[1688170509938,33.18,18.914,18.899,33.15]
[1688170510137,0.72453966,18.909,18.905,0.77619934]
[1688170510339,0.85787907,18.909,18.905,0.75708862]
[1688170511633,33.18,18.911,18.894,33.44]
[1688170511839,33.48,18.908,18.89,33.48]
[1688170512036,233.48,18.908,18.89,33.48]
[1688170512843,0.80436504,18.901,18.897,0.86179077]
[1688170517252,0.80436504,18.901,18.897,34.30179077]
[1688170518241,0.80436504,18.901,18.897,0.86179077]
[1688170519042,26.25926523,18.911,18.897,0.86179077]
[1688170519241,26.25926523,18.911,18.895,33.15]
[1688170519242,53.7278,18.91,18.895,33.15]
[1688170519941,53.7278,18.91,18.896,54.1803]
[1688170520154,0.86919964,18.905,18.901,0.79729937]
[1688170520851,33.18,18.923,18.904,33.44]
[1688170521049,200.0,18.928,18.899,200.0]
[1688170521050,1.94436753,18.922,18.907,33.48]
[1688170521249,1.94436753,18.921,18.907,33.48]
[1688170521447,33.47,18.925,18.907,33.48]
[1688170521653,1.94437455,18.924,18.907,33.48]
[1688170521855,0.71682472,18.917,18.914,0.86718971]
[1688170522152,0.83343965,18.917,18.914,0.86718971]
[1688170531156,0.83343965,18.917,18.899,200.0]
[1688170531157,0.83343965,18.917,18.907,80.99]
[1688170531353,80.99,18.917,18.904,80.23]
[1688170532255,0.71738959,18.912,18.909,0.79458798]
[1688170533745,0.71738959,18.912,18.901,80.3]
[1688170534847,0.71738959,18.912,18.905,0.7655297]
[1688170535352,108.14562959,18.912,18.898,80.99]
[1688170535658,80.37,18.91,18.897,80.99]
[1688170535850,59.76824,18.912,18.894,33.33]
[1688170536051,26.43963,18.911,18.894,33.33]
[1688170536450,0.72865374,18.904,18.901,0.82431111]
[1688170536650,0.83950413,18.904,18.901,0.82431111]
[1688170538656,26.34438198,18.917,18.9,33.33]
[1688170538853,1.94496705,18.916,18.9,33.33]
[1688170539254,1.94496705,18.915,18.9,33.33]
[1688170539449,1.94496705,18.914,18.9,33.33]
[1688170539651,0.7326315,18.909,18.905,0.77561485]
[1688170539861,0.84354617,18.909,18.905,0.86354019]
[1688170540062,619.33,18.927,18.906,33.2]
[1688170540360,619.33,18.927,18.91,33.4]
[1688170540555,619.33,18.927,18.913,33.33]
[1688170540556,586.0,18.927,18.913,33.33]
[1688170540752,58.32453165,18.926,18.913,33.33]
[1688170541059,0.74148588,18.921,18.918,0.79369044]
[1688170541262,1.94423165,18.92,18.918,0.79369044]
[1688170542262,1.94423165,18.92,18.908,33.2]
[1688170542748,1.94423165,18.919,18.908,33.2]
[1688170542953,1.94423165,18.918,18.908,33.2]
[1688170543152,0.75081343,18.915,18.911,0.72449877]
[1688170543352,0.78934333,18.915,18.911,0.81990912]
[1688170543661,0.78934333,18.915,18.912,33.4]
[1688170545156,26.00035509,18.928,18.912,33.4]
[1688170545366,56.36,18.931,18.918,33.4]